Cogmind - Beta 16 @@@ ROGUE MODE // 2025.10.29 @ 12:19:26 Player: OMNISSIAH Result: Destroyed by G-47 Trooper with Particle Gun Performance ------------- Evolutions (2) 1000 Regions Visited (3) 600 Robots Destroyed (56) 280 Value Destroyed (1134) 1134 Prototype IDs (4) 80 Alien Tech Used (0) 0 Bonus (0) 0 TOTAL SCORE: 3094 Bonus ------- None Cogmind --------- Core Integrity 0/550 Matter 250/300 Energy 47/125 System Corruption 1% Temperature Cool (6) Movement Walking (190) Ox1 Location -8/Materials Parts ------- > --- POWER (2) -------- Light Ion Engine > --- PROPULSION (4) --- Aluminum Leg > --- UTILITY (3) ------ Improved Signal Interpreter Targeting Computer Shield Generator > --- WEAPON (2) ------- Beam Cannon Heavy Hammer > --- INVENTORY (5) ---- (None) Peak State ------------ > --- POWER ------------ Cooled Ion Engine Light Nuclear Core > --- PROPULSION ------- Light Treads Light Treads Flight Unit > --- UTILITY ---------- Large Storage Unit Improved Terrain Scanner Shield Generator > --- WEAPON ----------- Beam Cannon Beam Cannon > --- INVENTORY -------- Light Ion Engine Aluminum Leg Aluminum Leg Improved Heat Sink Compact Matter Pod Seismic Detector Targeting Computer Targeting Computer Medium Armor Plating Shield Generator Tractor Beam Beam Cannon Mining Laser Heavy Hammer [Rating: 19] Favorites ----------- Power Ion Engine Engine Ion Engine Power Core Light Nuclear Core Propulsion Aluminum Leg Treads Light Treads Leg Aluminum Leg Flight Unit Flight Unit Utility Large Storage Unit Device Improved Terrain Scanner Storage Large Storage Unit Processor Improved Signal Interpreter Weapon Beam Cannon Energy Gun Improved Medium Laser Energy Cannon Beam Cannon Ballistic Gun Assault Rifle Launcher Grenade Launcher Special Weapon Mining Laser Impact Weapon Heavy Hammer Build | -11 -10 -9 -8 ------- Run | Yrd Mat Mat Mat Slots Evolved 4 | . . 2 2 Power 1 | . . . 1 Propulsion 2 | . . 2 . Utility 1 | . . . 1 Weapon . | . . . . Parts Attached 36 | 7 2 13 14 Power 8 | 1 . 3 4 Engine 7 | 1 . 3 3 Core 1 | . . . 1 Reactor . | . . . . Propulsion 10 | 2 . 4 4 Treads 3 | . . 2 1 Leg 5 | 2 . . 3 Wheel . | . . . . Hover . | . . . . Flight 2 | . . 2 . Utility 9 | 2 1 1 5 Device 5 | 1 . 1 3 Storage 2 | 1 1 . . Processor 2 | . . . 2 Hackware . | . . . . Protection . | . . . . Artifact . | . . . . Weapon 9 | 2 1 5 1 Energy Gun 1 | . . 1 . Energy Cannon 3 | . . 3 . Ballistic Gun 2 | 2 . . . Ballistic Cannon . | . . . . Launcher 1 | . 1 . . Special Weapon 1 | . . 1 . Impact Weapon 1 | . . . 1 Slashing Weapon . | . . . . Piercing Weapon . | . . . . Special Melee Weapon . | . . . . Unidentified Prototypes 1 | . . 1 . Parts Lost 23 | . . 7 16 Power 5 | . . 1 4 Propulsion 9 | . . 3 6 Utility 5 | . . 1 4 Weapon 4 | . . 2 2 Highest Loss Streak 11 | . . 3 11 To Critical Strikes . | . . . . Average Backups 11 | 3 8 14 11 Power 1 | 1 2 2 1 Propulsion . | . 1 . 1 Utility 6 | . 3 7 7 Weapon 2 | . 2 3 2 Tool/Special . | . . . . Unused Backups 10 | . . 2 8 Power 2 | . . 1 1 Propulsion 1 | . . 1 . Utility 6 | . . . 6 Weapon 1 | . . . 1 Tool/Special . | . . . . Average Slot Usage (%) 77 | . 100 72 65 Engine 11 | . 14 10 11 Treads 5 | . . 6 10 Leg 12 | . 28 9 1 Flight 3 | . . 5 3 Device 10 | . 14 8 10 Storage 11 | . 14 11 7 Processor 1 | . . . 5 Energy Cannon 7 | . . 11 7 Ballistic Gun 6 | . 23 1 . Launcher 3 | . 4 4 . Impact Weapon 1 | . . . 5 Peak Build Rating 19 | 9 10 14 19 Average Rating 10 | 7 9 10 12 On Entrance 8 | . 9 10 14 Avg Prop Armor Cover (%) 2 | . . 2 2 Naked Turns . | . . . . Heaviest Build 42 | 14 31 35 42 Greatest Support 40 | 20 20 40 40 Greatest Overweight (x) 9 | 1 1 7 9 Average Overweight (x) . | . . 1 . Largest Inventory Capacity 15 | 8 15 15 15 Average Capacity 13 | 7 13 15 13 Most Carried 15 | 5 11 15 15 Average Carried 11 | 3 8 14 11 Final Capacity 15 | 8 15 15 5 Final Carried 15 | 5 11 15 . Class Distribution -------------------- 77% | Mutant 22% | Scavenger-Mutant Dominant Class ---------------- Mutant | -10/Materials Mutant | -9/Materials Mutant | -8/Materials Resources | -11 -10 -9 -8 ----------- Run | Yrd Mat Mat Mat Matter Collected 835 | 350 64 216 205 Remotely . | . . . . Salvage Created 1704 | 165 108 1088 343 Parts 108 | 11 6 81 10 Haulers Intercepted 2 | . . 2 . Recyclers Shooed 2 | 1 . 1 . Parts Field Recycled . | . . . . Retrieved Matter . | . . . . Parts Self-Destructed . | . . . . Prevented . | . . . . Parts Restored . | . . . . Kills | -11 -10 -9 -8 ------- Run | Yrd Mat Mat Mat Combat Hostiles Destroyed 33 | . 3 23 7 Melee 3 | . . . 3 Guns 6 | . 1 5 . Cannons 13 | . . 12 1 AOE 8 | . 2 6 . Classes Destroyed 9 | 3 1 5 . Worker 5 | 1 . 2 2 Builder 2 | . . 2 . Tunneler 7 | 4 . 3 . Hauler 2 | . . 2 . Recycler 3 | 1 . 2 . Watcher 4 | . . 4 . Swarmer 13 | . . 12 1 Grunt 14 | . 3 7 4 Sentry 6 | . . 4 2 Best Kill Streak 10 | 3 2 10 3 Combat Bots Only 6 | . 2 6 2 Max Kills in Single Turn 4 | 1 2 4 1 Gunslinging . | . . . . Exploded 4 | . 2 4 . Melee 1 | . . . 1 Uniques/NPCs Destroyed . | . . . . Combat | -11 -10 -9 -8 -------- Run | Yrd Mat Mat Mat Hostile Shots Fired 319 | . 10 148 161 Missed 89 | . 2 46 41 Hits 230 | . 8 102 120 Projectile 230 | . 8 102 120 Critical Strikes 10 | . . 3 7 Damage Taken 2817 | . 105 1086 1626 Core 871 | . 28 289 554 Absorbed by Shields 120 | . . . 120 Core Remaining (%) 71 | 100 88 27 . Volleys Fired 155 | 20 8 102 25 Largest 2 | 2 2 2 2 Hottest 120 | 40 40 120 120 Shots Fired 246 | 40 14 152 40 Gun 94 | 40 12 42 . Cannon 143 | . . 103 40 Launcher 6 | . 2 4 . Special 3 | . . 3 . Kinetic 60 | 40 12 8 . Thermal 180 | . . 140 40 Explosive 6 | . 2 4 . Electromagnetic . | . . . . Robot Hit Streak 15 | 5 4 11 15 Robot Miss Streak 8 | 5 2 8 5 Penetration Max . | . . . . Secondary Targets . | . . . . Shots Hit Robots 133 | 19 8 73 33 Core Hits 66 | 10 4 43 9 Critical Kills . | . . . . Critical Parts Destroyed 1 | . . . 1 Critical Strikes 3 | . . 2 1 Burn 2 | . . 2 . Smash 1 | . . . 1 Melee Attacks 16 | . . . 16 Impact 16 | . . . 16 Slashing . | . . . . Piercing . | . . . . Sneak Attacks 2 | . . . 2 Combat Hostiles . | . . . . Follow-up Attacks . | . . . . Damage Inflicted 3261 | 203 208 1879 971 Guns 669 | 203 74 392 . Cannons 1430 | . . 1045 385 Explosions 576 | . 134 442 . Melee 586 | . . . 586 Ramming . | . . . . Kinetic 367 | 203 74 90 . Thermal 1774 | . . 1389 385 Explosive 534 | . 134 400 . Electromagnetic . | . . . . Impact 586 | . . . 586 Slashing . | . . . . Piercing . | . . . . Highest Corruption 1 | . . . 1 Average Corruption 1 | . . . 1 Corruption Purged . | . . . . Corruption Blocked . | . . . . Effects 5 | . . . 5 Message Errors 2 | . . . 2 Energy Discharges 1 | . . . 1 Parts Rejected 1 | . . . 1 Data Loss (major) 1 | . . . 1 Overload Shots . | . . . . Overflow Damage 205 | . . 14 191 Projectiles 5 | . . 5 . Explosions 9 | . . 9 . Melee 191 | . . . 191 Knockbacks 3 | . . . 3 Impact 3 | . . . 3 Kinetic . | . . . . Secondary . | . . . . Self-Inflicted Damage 11 | . . 11 . Shots 1 | . . 1 . Rammed . | . . . . Targets Rammed . | . . . . Kicked . | . . . . Crushed . | . . . . Highest Temperature 561 | . 9 548 561 Average Temperature 132 | . 5 108 212 Received Heat Transfer 1097 | . 57 216 824 Effects 22 | . . 9 13 Shutdowns 5 | . . 2 3 Interference 3 | . . 3 . Matter Decay 1 | . . 1 . Damage (minor) 4 | . . 2 2 Damage (major) 8 | . . . 8 Damage (core) 1 | . . 1 . Siege Activations . | . . . . Martial Activations . | . . . . Shielding Activations . | . . . . Robots Disrupted . | . . . . Combat Hostiles . | . . . . Robots Corrupted 3 | . . . 3 Combat Hostiles 2 | . . . 2 Parts Fried 3 | . . . 3 Impact Corruptions 6 | . . . 6 Robots Melted 1 | . . . 1 Combat Hostiles 1 | . . . 1 Parts Melted 8 | . . 5 3 Heat Transferred 3898 | . . 3084 814 Parts Sabotaged . | . . . . Parts Stolen . | . . . . Parts Stripped . | . . . . Power Chain Reactions . | . . . . Alert | -11 -10 -9 -8 ------- Run | Yrd Mat Mat Mat Maximum Alert Level 1 | . . 1 . Low Security (%) 99 | 100 100 98 100 Level 1 . | . . 1 . Level 2 . | . . . . Level 3 . | . . . . Level 4 . | . . . . Level 5 . | . . . . High Security . | . . . . Max Security . | . . . . Peak Influence 201 | 10 61 201 81 Initial 71 | . . . 71 Average 49 | 1 9 83 28 Influence Increases 1135 | 30 106 732 267 Destroy 0b10 Robot/C 660 | . 60 460 140 Destroy 0b10 Robot/NC 115 | 30 . 75 10 Destroy Leader 162 | . 20 102 40 Successful Hack 36 | . 17 2 17 Disable Machine 45 | . . 45 . Destroy Structure 57 | . 9 48 . Partial Spotted 15 | . . . 15 Lose Combat Pursuer 45 | . . . 45 Influence Decreases 1054 | 30 106 562 356 Entered New Map 99 | . . . 99 Time Decay 681 | 30 106 342 203 Lost Part 124 | . . 70 54 Purge Threat 150 | . . 150 . Squads Dispatched 6 | . 1 3 2 Investigation 3 | . . 2 1 Extermination . | . . . . Reinforcement 3 | . 1 1 1 Assault . | . . . . Garrison . | . . . . Intercept . | . . . . Searches Triggered . | . . . . Construction Impeded . | . . . . Haulers Reinforced . | . . . . Active Scanning Responses . | . . . . Cargo Convoy Interrupts . | . . . . Stealth | -11 -10 -9 -8 --------- Run | Yrd Mat Mat Mat Distress Signals 5 | . . 2 3 Communications Jammed . | . . . . Distress Signals . | . . . . Times Spotted 51 | . 5 32 14 Peak Tracking Total 7 | . 2 7 7 Tactical Retreats 1 | . . . 1 Traps | -11 -10 -9 -8 ------- Run | Yrd Mat Mat Mat Traps Triggered 1 | . . 1 . Indirectly . | . . . . Trap Hack Attempts . | . . . . Triggered . | . . . . Disarmed . | . . . . Reprogrammed . | . . . . Reused . | . . . . Traps Extracted . | . . . . Installed . | . . . . Triggered . | . . . . Machines | -11 -10 -9 -8 ---------- Run | Yrd Mat Mat Mat Machines Disabled 4 | . . 4 . Max in Single Turn 3 | . . 3 . Machines Repaired . | . . . . Machines Dismantled . | . . . . Machines Sabotaged . | . . . . Overloaded Fab Kills . | . . . . Hacking | -11 -10 -9 -8 --------- Run | Yrd Mat Mat Mat Machines Accessed 11 | . 4 4 3 Terminals 8 | . 3 3 2 Fabricators . | . . . . Repair Stations . | . . . . Recycling Units 1 | . 1 . . Scanalyzers 2 | . . 1 1 Garrison Access . | . . . . Total Hacks 38 | . 11 18 9 Successful 20 | . 6 10 4 Failed 17 | . 5 7 5 Catastrophic 1 | . 1 . . Database Lockouts 1 | . . 1 . Manual 3 | . 1 2 . Terminals 29 | . 8 14 7 Fabricators . | . . . . Repair Stations . | . . . . Recycling Units 3 | . 3 . . Scanalyzers 6 | . . 4 2 Garrison Access . | . . . . Terminal Hacks 16 | . 4 8 4 Record 10 | . 1 6 3 Prototype ID Bank 2 | . 1 . 1 Unreport Threat 1 | . . 1 . Dispatch Records 1 | . . 1 . Maintenance Status 1 | . 1 . . Zone Layout 1 | . 1 . . Fabricator Hacks . | . . . . Repair Station Hacks . | . . . . Recycling Unit Hacks 2 | . 2 . . Recycle Component 1 | . 1 . . Retrieve Matter 1 | . 1 . . Scanalyzer 2 | . . 2 . Insert Component 1 | . . 1 . Retrieve Study 1 | . . 1 . Garrison Access Hacks . | . . . . Unauthorized Hacks . | . . . . Terminals . | . . . . Fabricators . | . . . . Repair Stations . | . . . . Recycling Units . | . . . . Scanalyzers . | . . . . Garrison Access . | . . . . Data Cores Recovered . | . . . . Used . | . . . . Hacking Detections 11 | . 4 4 3 Full Trace Events 4 | . 1 2 1 Feedback Events 1 | . . . 1 Corruption 1 | . . . 1 Feedback Blocked . | . . . . Robot Schematics Acquired . | . . . . Robots Built . | . . . . Authchips . | . . . . Time . | . . . . Total Robot Build Rating . | . . . . Part Schematics Acquired . | . . . . Parts Built . | . . . . Authchips . | . . . . Time . | . . . . Total Part Build Rating . | . . . . Part Studies Acquired 1 | . . 1 . Parts Repaired . | . . . . Time . | . . . . Parts Recycled 1 | . 1 . . Recycled Matter . | . . . . Retrieved Matter . | . . . . Retrieved Components . | . . . . Parts Scanalyzed . | . . . . Part Schematics Acquired . | . . . . Parts Damaged . | . . . . Bothacking | -11 -10 -9 -8 ------------ Run | Yrd Mat Mat Mat Used RIF Installer . | . . . . Robots Hacked . | . . . . Non-combat . | . . . . Combat . | . . . . Robot Hacks Applied . | . . . . Relay Couplers Released . | . . . . Fabnet Peak Effective % . | . . . . Robots Rewired . | . . . . Allies Hacked . | . . . . Hacks Repelled . | . . . . Allies | -11 -10 -9 -8 -------- Run | Yrd Mat Mat Mat Total Allies . | . . . . Largest Group . | . . . . Highest-Rated Group . | . . . . Highest-Rated Ally . | . . . . Total Orders . | . . . . Ally Attacks . | . . . . Total Damage . | . . . . Kills . | . . . . Allies Corrupted . | . . . . Allies Melted . | . . . . Intel | -11 -10 -9 -8 ------- Run | Yrd Mat Mat Mat Active Infowar (turns) 2229 | 155 621 1000 453 Terrain 1981 | 155 621 1000 205 Seismic 248 | . . . 248 Robot Analysis Total . | . . . . Derelict Logs Recovered . | . . . . Drone Launches . | . . . . Drone Recoveries . | . . . . Exploration | -11 -10 -9 -8 ------------- Run | Yrd Mat Mat Mat Turns Passed 2835 | 210 621 1410 594 Spaces Moved 1225 | 117 353 546 209 Core 24 | 6 . 5 13 Treads 397 | . . 225 172 Legs 759 | 111 353 271 24 Wheels . | . . . . Hover . | . . . . Flight 45 | . . 45 . Fastest Speed 50 | 50 120 160 50 Average Speed 188 | 118 167 204 220 Slowest Speed 600 | 120 190 600 500 Overloaded Moves . | . . . . Propulsion Burnouts . | . . . . Robots Hopped . | . . . . Potential Cave-ins . | . . . . Cave-ins Triggered . | . . . . Exploration Rate (%) 25 | 6 33 46 15 Regions Visited 3 Branch Regions . Pre-discovered Areas . | . . . . Known Exits Taken . | . . . . Unknown Exits Taken 3 | 1 1 1 . Scrap Searched . | . . . . Spaces Dug 3 | . . 3 . Terrain Destroyed 50 | . 8 42 . Melee . | . . . . Projectile 3 | . . 3 . AOE 47 | . 8 39 . Terrain Rammed . | . . . . Walls Destroyed . | . . . . Machines Disabled . | . . . . Actions | -11 -10 -9 -8 --------- Run | Yrd Mat Mat Mat Total 1472 | 149 368 682 273 Wait 1 | . . 1 . Move 1222 | 116 352 545 209 Hop . | . . . . Pick Up 32 | 6 6 13 7 Fast Attach 13 | 6 . 5 2 Attach 18 | 1 . 3 14 Detach . | . . . . Swap 8 | . 2 6 . Drop 7 | . . 7 . Fire 155 | 20 8 102 25 Melee 16 | . . . 16 Ram . | . . . . Kick . | . . . . Crush . | . . . . Escape Stasis . | . . . . Rewire . | . . . . Trap . | . . . . Miscellaneous . | . . . . Route ------- -11/Scrapyard -10/Materials -9/Materials (discovered 2 exits: *Mat / [*Min]) -8/Materials History --------- Turn | Location | Event 5 | -11/Scrapyard | Discovered new exit (range 16) 211 | -11/Scrapyard | Entered Materials 307 | -10/Materials | Build established: Mutant 771 | -10/Materials | Discovered new exit (range 3) 832 | -10/Materials | Entered another Materials area 832 | -9/Materials | Evolved 2 slots: Propulsion x2 1488 | -9/Materials | Lost 3 parts (1p1n1u) 1540 | -9/Materials | Core integrity fell below 50% 1588 | -9/Materials | Discovered new exit (range 12) 2106 | -9/Materials | Build established: Scavenger-Mutant 2131 | -9/Materials | Discovered new exit (range 15) 2226 | -9/Materials | Central database locked down 2242 | -9/Materials | Entered another Materials area 2242 | -8/Materials | Evolved 2 slots: Power x1, Utility x1 2524 | -8/Materials | Lost 11 parts (2p5n2u2w) 2738 | -8/Materials | Build established: Mutant 2769 | -8/Materials | Core integrity fell below 50% 2789 | -8/Materials | Core integrity fell below 20% 2829 | -8/Materials | Lost 5 parts (2p1n2u) 2836 | -8/Materials | Destroyed by G-47 Trooper with Particle Gun Last Messages --------------- R-06 Scavenger collects Flight Unit. Lgt. Ion Engine destroyed. K-01 Serf collects debris. S-10 Pest destroyed. K-01 Serf collects debris. Sneak attack on K-01 Serf. Destroyed Wheel. Destroyed Lgt. Ion Engine. K-01 Serf system corrupted by crushing effect. K-01 Serf knocked back. K-01 Serf system terminally corrupted. K-01 Serf collects debris. Lgt. Treads destroyed. U-05 Engineer builds a Door. K-01 Serf collects debris. Destroyed Imp. Heat Sink. G-47 Trooper system corrupted by crushing effect. G-47 Trooper destroyed. Map ----- +----------------------------------------------------+ | ????????????????????????????#????????????????????? | | ?????????????????????????????????????#?????????#?? | | ????????????????????????????????????????????#????? | | ??????????????????????????????????##########?????? | | ??????????????????????????????????# #?????? | | ????????????????? ??????????????# #?????? | | ????????????????# ???????????#??# #?????? | | ????????????????# ????????????#?# "" #?????? | | ????????????????# #????????????## """ #?????? | | ????????????????+ +?????? ??????# S" #?????? | | ????????????????# #???? ???????## """ ##?? ?? | | ????????????????# #???########### """ #?????? | | ??????????????#?# #??## # #?????? | | ????????????? ?# #???# """####+#####???#?# | | ?????????????" # #???# """ Y"# #??????# | | ?????????????? # #???# """ """# #???#??? | | ??????????????? + #???# """ # #?? ??## | | ????????????????# #???# """ # #######+###? | | ????????????????# #???# """ # # +? | | ???????????????## ##??# # # == """ #? | | ????#??????????# ##########+### %+ == """ #? | | ???# ####### k # == """ #? | | ???# %= *!!!k #= #? | | ???# %*[ %[!!*!% # ! ## | | ???# [ =%|###/######+####### #? | | ???# ####### ####Yw@ #?? ?????# % #? | | ????# ????????# %#??#" #?? ?????######+##### | | ???????????????# #??#"g #?? ?????#????#% | | ???????????????# #??#" #?? ???????#??# ## | | ???????????????# #??#T #? ???####### #? ? | | ???????????????# #??#" # ????# #?? | | ???????????????# #??#" # ??## #??? | | ???????????????# #??#" # ## T ##?? | | ???????????????# ???# # + #??? | | ???????????????# ???######?######## # ?? | | ???????????????# ????????????????## # ?? | | ???????????????# ??????????????##?# #? ? | | ???????????????# ?????????????????# #?? | | ???????????????# ??????? ?? ^ #??? | | ???????????????? ?????? +??? | | ??????????????????????????####### #??? | | ????????????????????????????????# [ ##??? | | ????????????????????????????????# #??## | | ????????????????????????????????# ???? | | ????????????????????????????????# " # ??? | | ????????????????????????????????# """ ###?? | | ??????????????????????????????? + """ #???? | | ????????????????????????????????# """ #???? | | ????????????????????????????????# ??? #???? | | ????????????????????????????????# ??? #???? | +----------------------------------------------------+ Best States ------------- Heat Dissipation 31 Energy Generation 23 Energy Capacity 340 Matter Stores 300 Matter Capacity 300 Sight Range 16 Terrain Scan Range 16 Terrain Scan Density 10 Evasion (%) 55 Targeting Accuracy 5 Recoil Reduction 2 Item Schematics ----------------- None Robot Schematics ------------------ None Fabricated ------------ Nothing Repaired ---------- Nothing Studied --------- Mining Laser | -9/Materials | Hacked Alien Tech Used ----------------- None Achievements -------------- Item+ Novice Programmer Power Corrupts Well Done Challenges ------------ None Game ------ Seed SegregatorFissionMultitool Manual? 0 Play Time 00:36:15 Cumulative 2.9 hours Start 2025.10.29 @ 11:29:41 End 2025.10.29 @ 12:19:26 Sessions 1 Manual Loads 0 Difficulty Rogue Special Mode None Game No. 5 Rogue 5 Adventurer 0 Explorer 0 Win Type - Total 0 Types 0/0/0/0/0/0/0/0/0/0 Lore% 7 Gallery% 5 Achievement% 7 Wizard Run 0 Options --------- Layout 1 ASCII 0 Keyboard 0 Movement Arrows Keybinds 0 Fullscreen 1 Font 24/Smallcaps Map View 50x35 Zoom Use 0% Tactical HUD 0 Map Filters NONE Filters NONE Steam 1 RUN: ecbd5e9a-c663-434b-9c53-d54f934d7ae7